fUST/lending_fUST_20240424
["ID","MTS","AMOUNT","RATE_DAILY","PERIOD"]
[323338036,1713905443160,-1803.11074199,0.00019178,2]
[323338069,1713905443717,-350.42643964,0.00019178,2]
[323338070,1713905443731,-1057.72136852,0.00019178,2]
[323338110,1713905705186,150.5,0.000241,35]
[323338111,1713905705777,150.5,0.0002409,35]
[323338112,1713905706354,150.5,0.0002408,35]
[323338607,1713905950792,-566.89793852,0.0002915,30]
[323338608,1713905950814,-1262.98562613,0.0002915,120]
[323338609,1713905950839,-1000.0,0.0002915,60]
[323338610,1713905950862,-1000.0,0.0002915,90]
[323338611,1713905950884,-1000.0,0.0002915,90]
[323338612,1713905950908,-1000.0,0.0002915,120]
[323338613,1713905950930,-1000.0,0.0002915,120]
[323338614,1713905950954,-593.7984422,0.0002915,120]
[323338615,1713905950978,-1157.75228905,0.0002915,30]
[323338616,1713905951001,-968.96751337,0.0002915,120]
[323338617,1713905951024,-510.40333319,0.0002915,30]
[323338618,1713905951045,-1382.01726034,0.0002915,120]
[323338619,1713905951069,-501.9,0.0002915,90]
[323338620,1713905951091,-501.9,0.0002915,120]
[323338621,1713905951114,-150.83560795,0.0002915,120]
[323338622,1713905951136,-1000.0,0.0002915,30]
[323338623,1713905951159,-1000.0,0.0002915,60]
[323338624,1713905951181,-1000.0,0.0002915,120]
[323338625,1713905951203,-152.48920501,0.0002915,30]
[323338626,1713905951227,-1008.63268274,0.0002915,120]
[323338627,1713905951252,-1000.0,0.0002915,60]
[323338628,1713905951275,-501.9,0.0002915,60]
[323338629,1713905951300,-2558.81644266,0.0002915,120]
[323338630,1713905951324,-1000.0,0.0002915,30]
[323338631,1713905951345,-1000.0,0.0002915,30]
[323338632,1713905951368,-501.9,0.0002915,30]
[323338633,1713905951390,-504.40360671,0.0002915,30]
[323338634,1713905951413,-150.09738621,0.0002915,30]
[323338635,1713905951438,-213.44199491,0.0002915,120]
[323338636,1713905951461,-196.38356939,0.0002915,120]
[323338637,1713905951484,-326.64179103,0.0002915,120]
[323338638,1713905951507,-6584.7601049,0.0002915,120]
[323338639,1713905951530,-383.41810519,0.0002915,120]
[323338640,1713905951553,-2858.22965246,0.0002915,30]
[323338641,1713905951576,-162.13491535,0.0002915,120]
[323338642,1713905951599,-885.11818534,0.0002915,120]
[323338643,1713905951622,-456.83101479,0.0002915,30]
[323338644,1713905951645,-31167.93988927,0.0002915,30]
[323338645,1713905951667,-152.86945292,0.0002915,30]
[323338646,1713905951690,-202.30842167,0.0002915,30]
[323338647,1713905951714,-5556.2908259,0.0002915,30]
[323338648,1713905951737,-1000.0,0.0002915,60]
[323338649,1713905951760,-1918.5106154,0.0002915,30]
[323338650,1713905963684,-121603.9458,0.0002551,30]
[323338651,1713905963713,-1206.67266007,0.00026673,30]
[323338652,1713905963740,-15108.50341388,0.00027,30]
[323338653,1713905963765,-585.47,0.00027397,30]
[323338654,1713905963789,-585.47,0.00027397,30]
[323338655,1713905963812,-585.47,0.00027397,30]
[323338656,1713905963835,-585.47,0.00027397,30]
[323338657,1713905963859,-585.47,0.00027397,30]
[323338658,1713905963881,-585.47,0.00027397,30]
[323338659,1713905963906,-585.47,0.00027397,30]
[323338660,1713905963929,-585.47,0.00027397,30]
[323338661,1713905963951,-585.47,0.00027397,30]
[323338662,1713905963977,-585.47,0.00027397,30]
[323338663,1713905963999,-585.47,0.00027397,30]
[323338664,1713905964023,-585.47,0.00027397,30]
[323338665,1713905964047,-585.47,0.00027397,30]
[323338666,1713905964069,-585.47,0.00027397,30]
[323338667,1713905964237,-585.47,0.00027397,30]
[323338668,1713905964259,-585.47,0.00027397,30]
[323338669,1713905964283,-585.47,0.00027397,30]
[323338670,1713905964306,-585.47,0.00027397,30]
[323338671,1713905964328,-585.47,0.00027397,30]
[323338672,1713905964352,-585.47,0.00027397,30]
[323338673,1713905964375,-585.47,0.00027397,30]
[323338674,1713905964397,-585.47,0.00027397,30]
[323338675,1713905964420,-585.47,0.00027397,30]
[323338676,1713905964442,-585.63148375,0.00027397,30]
[323338677,1713905964470,-93134.7548,0.0002751,30]
[323338678,1713905964493,-54411.68171948,0.0002778,120]
[323338679,1713905964516,-50000.0,0.00028,120]
[323338680,1713905964542,-200.0,0.00028552,120]
[323338681,1713905964567,-50000.0,0.00029,120]
[323338682,1713905964595,-283.00012282,0.0003,30]
[323338683,1713905970492,-144.42754991,0.0003,30]
[323338684,1713905970516,-200.13974053,0.0003,30]
[323338685,1713905970540,-154.82968734,0.0003,30]
[323338686,1713905970562,-8465.0,0.0003,30]
[323338687,1713905970584,-14442.0,0.0003,30]
[323338688,1713905970607,-50000.0,0.0003,120]
[323338689,1713905970629,-3638.05065028,0.0003,30]
[323338690,1713905970652,-295.23742613,0.0003,120]
[323338691,1713905970675,-167.162871,0.00030137,34]
[323338692,1713905970700,-167.162871,0.00030137,44]
[323338693,1713905970725,-167.162871,0.00030137,55]
[323338694,1713905970749,-167.162871,0.00030137,66]
[323338695,1713905970772,-167.162871,0.00030137,77]
[323338696,1713905970797,-167.162871,0.00030137,87]
[323338697,1713905970820,-167.162871,0.00030137,98]
[323338698,1713905970843,-167.162871,0.00030137,109]
[323338699,1713905970866,-167.162871,0.00030137,119]
[323338700,1713905971037,-200.0,0.00032079,120]
[323338701,1713905971062,-200.0,0.00032297,120]
[323338702,1713905971087,-2413.34532015,0.00032308,120]
[323338703,1713905971112,-200.0,0.00032374,120]
[323338704,1713905971139,-160.0,0.00032925,30]
[323338705,1713905971162,-160.0,0.00033139,31]
[323338706,1713905971186,-160.0,0.00033353,32]
[323338707,1713905971209,-160.0,0.00033567,33]
[323338708,1713905971233,-200.0,0.00033861,120]
[323338709,1713905971260,-200.0,0.00034603,120]
[323338710,1713905971283,-81280.74053212,0.00035,30]
[323338711,1713905971309,-186.28236347,0.00035,30]
[323338712,1713905971333,-10104.0,0.00035,30]
[323338713,1713905971356,-362.96057121,0.00035,30]
[323338714,1713905971379,-6017.0,0.00035,30]
[323338715,1713905971402,-8030.5791407,0.00035,120]
[323338716,1713905971426,-200.0,0.00035398,120]
[323338717,1713905971453,-4151.971562,0.00035616,120]
[323338718,1713905971476,-200.0,0.00035629,120]
[323338719,1713905971500,-200.0,0.00035673,120]
[323338720,1713905971523,-200.0,0.00035863,120]
[323338721,1713905971546,-154.82968734,0.000359,30]
[323338722,1713905971571,-1101.74902505,0.0003707,31]
[323338723,1713905971595,-3000.0,0.000375,32]
[323338724,1713905971619,-3000.0,0.0003751,32]
[323338725,1713905971642,-3000.0,0.0003752,32]
[323338726,1713905971665,-3000.0,0.0003753,32]
[323338727,1713905971688,-3000.0,0.0003754,32]
[323338728,1713905971711,-3000.0,0.0003755,32]
[323338729,1713905971736,-3000.0,0.0003756,32]
[323338730,1713905971760,-3000.0,0.0003757,32]
[323338731,1713905971787,-3000.0,0.0003758,32]
[323338732,1713905971810,-3000.0,0.0003759,32]
[323338733,1713905971837,-3000.0,0.000376,32]
[323338734,1713905971861,-3000.0,0.0003761,32]
[323338735,1713905971885,-3000.0,0.0003762,32]
[323338736,1713905971908,-3000.0,0.0003763,32]
[323338737,1713905971932,-3000.0,0.0003764,32]
[323338738,1713905971959,-3000.0,0.0003765,32]
[323338739,1713905971987,-3000.0,0.0003766,32]
[323338740,1713905972014,-3000.0,0.0003767,32]
[323338741,1713905972042,-3000.0,0.0003768,32]
[323338742,1713905972066,-3000.0,0.0003769,32]
[323338743,1713905972090,-3000.0,0.000377,32]
[323338744,1713905972113,-3000.0,0.0003771,32]
[323338745,1713905972138,-3000.0,0.0003772,32]
[323338746,1713905972161,-3000.0,0.0003773,32]
[323338747,1713905972186,-3000.0,0.0003774,32]
[323338748,1713905972210,-3000.0,0.0003775,32]
[323338749,1713905972234,-3000.0,0.0003776,33]
[323338750,1713905972259,-3000.0,0.0003777,33]
[323338751,1713905972283,-3000.0,0.0003778,33]
[323338752,1713905972311,-23158.0,0.00037788,30]
[323338753,1713905972335,-3000.0,0.0003779,33]
[323338754,1713905972358,-3000.0,0.000378,33]
[323338755,1713905972381,-3000.0,0.0003781,33]
[323338756,1713905972405,-3000.0,0.0003782,33]
[323338757,1713905972429,-3000.0,0.0003783,33]
[323338758,1713905972453,-3000.0,0.0003784,33]
[323338759,1713905972478,-5212.279212,0.0003785,33]
[323338760,1713905972502,-1577.0,0.00038,120]
[323338761,1713905972525,-20000.0,0.00038388,60]
[323338762,1713905972553,-1207.4,0.00039,120]
[323338763,1713905972576,-445.0,0.00039,120]
[323338764,1713905972600,-1000.0,0.00039,39]
[323338765,1713905972624,-156.33569836,0.00039,120]
[323338766,1713905972649,-1000.0,0.00039,39]
[323338767,1713905972673,-209.96312836,0.0004,120]
[323338768,1713905972696,-1500.0,0.0004,120]
[323338769,1713905972720,-2456.43661974,0.0004,30]
[323338770,1713905972745,-286.41560765,0.00040049,30]
[323338771,1713905972773,-183.0075072,0.00040127,30]
[323338772,1713905972797,-286.41560765,0.00040135,30]
[323338773,1713905972820,-150.59230084,0.0004015,30]
[323338774,1713905972845,-1802.64948113,0.00040165,30]
[323338775,1713905972871,-183.0075072,0.00040316,30]
[323338776,1713905972895,-154.29401085,0.0004044,30]
[323338777,1713905972921,-1584.58081245,0.00040591,30]
[323338778,1713905972947,-286.41560765,0.00040731,30]
[323338779,1713905972973,-180.99188609,0.00040766,30]
[323338780,1713905973000,-150.59230084,0.00040806,30]
[323338781,1713905973023,-642.57,0.00041095,120]
[323338782,1713905973049,-642.57,0.00041095,120]
[323338783,1713905973206,-642.57,0.00041095,120]
[323338784,1713905973231,-642.57,0.00041095,120]
[323338785,1713905973255,-642.57,0.00041095,120]
[323338786,1713905973279,-642.57,0.00041095,120]
[323338787,1713905973305,-642.57,0.00041095,120]
[323338788,1713905973328,-642.57,0.00041095,120]
[323338789,1713905973351,-642.57,0.00041095,120]
[323338790,1713905973375,-642.57,0.00041095,120]
[323338791,1713905973397,-642.57,0.00041095,120]
[323338792,1713905973421,-642.57,0.00041095,120]
[323338793,1713905973443,-642.57,0.00041095,120]
[323338794,1713905973466,-642.57,0.00041095,120]
[323338795,1713905973489,-642.57,0.00041095,120]
[323338796,1713905973512,-642.57,0.00041095,120]
[323338797,1713905973535,-642.57,0.00041095,120]
[323338798,1713905973564,-642.57,0.00041095,120]
[323338799,1713905973588,-642.57,0.00041095,120]
[323338800,1713905973610,-642.57,0.00041095,120]
[323338801,1713905973633,-642.57,0.00041095,120]
[323338802,1713905973656,-642.57,0.00041095,120]
[323338803,1713905973679,-642.57,0.00041095,120]
[323338804,1713905973702,-642.59786482,0.00041095,120]
[323338805,1713905973725,-154.89156354,0.00041095,120]
[323338806,1713905973749,-1802.64948113,0.00041116,30]
[323338807,1713905973772,-286.41560765,0.00041167,30]
[323338808,1713905973796,-183.0075072,0.00041167,30]
[323338809,1713905973819,-183.0075072,0.00041198,30]
[323338810,1713905973842,-150.59230084,0.00041232,30]
[323338811,1713905973867,-286.41560765,0.00041256,30]
[323338812,1713905973890,-4151.971562,0.00041553,120]
[323338813,1713905973914,-1802.64948113,0.00041697,30]
[323338814,1713905973936,-154.29401085,0.00041757,30]
[323338815,1713905973960,-12163.41112275,0.00041778,120]
[323338819,1713906064700,150.5,0.000241,35]
[323338820,1713906065262,150.5,0.0002409,35]
[323338821,1713906065852,150.5,0.0002408,35]
[323338835,1713906161804,1206.67266007,0.00022934,30]
[323338836,1713906162888,150.83408251,0.00018326,30]
[323338837,1713906162950,150.83408251,0.00017959,120]
[323338840,1713906355761,154.84515485,0.00011,2]
[323338841,1713906356490,1620.29564358,0.00011,2]
[323338842,1713906357100,2623.97456043,0.00011,2]
[323338843,1713906357383,1311.74164115,0.00011,2]
[323338844,1713906357824,1490.32391025,0.00011,2]
[323338845,1713906360665,300.0,0.00011,2]
[323338846,1713906361612,300.0,0.00011,2]
[323338847,1713906362230,203.84630574,0.00011,2]
[323338848,1713906363836,154.84515485,0.00011,2]
[323338849,1713906365121,193.60170872,0.00011,2]
[323338850,1713906369453,459.70738052,0.00011,2]
[323338851,1713906370381,701.94771615,0.00011,2]
[323338852,1713906371551,564.51895848,0.00011,2]
[323338853,1713906372521,448.56571186,0.00011,2]
[323338854,1713906374849,235.59138741,0.00011,2]
[323338855,1713906375039,448.56571186,0.00011,2]
[323338856,1713906375333,280.57604079,0.00011,2]
[323338857,1713906376690,1678.29832492,0.00011,2]
[323338858,1713906377200,808.46399951,0.00011,2]
[323338859,1713906377332,526.34381075,0.00011,2]
[323338860,1713906377533,448.56571186,0.00011,2]
[323338861,1713906377919,283.38557575,0.00011,2]
[323338862,1713906380283,329.62886819,0.00011,2]
[323338863,1713906380922,173.22582113,0.00011,2]
[323338864,1713906381653,362.01061268,0.00011,2]
[323338865,1713906382016,448.56571186,0.00011,2]
[323338866,1713906383315,468.44380318,0.00011,2]
[323338867,1713906386190,19184.99388325,0.00011,2]
[323338868,1713906386514,448.56571186,0.00011,2]
[323338869,1713906386990,883.78313678,0.00011,2]
[323338870,1713906387061,167.63774808,0.00010901,2]
[323338871,1713906387380,471.87732034,0.00011,2]
[323338872,1713906387947,521.52942585,0.00011,2]
[323338873,1713906388062,977.80653021,0.00011,2]
[323338874,1713906389322,206.06744026,0.00011,2]
[323338875,1713906389452,1202.20163216,0.00011,2]
[323338876,1713906390919,154.84515485,0.00011,2]
[323338877,1713906391340,280.57604079,0.00011,2]
[323338878,1713906391523,154.84515485,0.00011,2]
[323338879,1713906391989,167.63774808,0.00010906,2]
[323338880,1713906395823,474.79230604,0.00011,2]
[323338881,1713906395911,623.77275616,0.00011,2]
[323338882,1713906398084,59159.66057733,0.00011,2]
[323338883,1713906400028,1878.1368462,0.00011,2]
[323338884,1713906401328,1394.46359454,0.00011,2]
[323338885,1713906402742,154.84515485,0.00011,2]
[323338886,1713906403691,5801.77357762,0.00011,2]
[323338887,1713906404623,519.95768087,0.00011,2]
[323338888,1713906406200,19184.99388325,0.00011,2]
[323338889,1713906406344,162.02240911,0.00011,2]
[323338890,1713906410354,72560.09039098,0.00011,2]
[323338891,1713906413514,1268.0251528,0.00010035,2]
[323338892,1713906419148,187.2839657,0.00011,2]
[323338893,1713906424834,286.4,0.000241,35]
[323338894,1713906426215,17638.41088307,0.00011,2]
[323338896,1713906430140,233.03244478,0.00011,2]
[323338897,1713906434312,2516.3002862,0.00010511,2]
[323338898,1713906436378,154.84515485,0.00011,2]
[323338899,1713906436412,154.84515485,0.00011,2]
[323338900,1713906436785,1620.29564358,0.00011,2]
[323338901,1713906437174,-1578.09578874,0.00011001,2]
[323338902,1713906437195,-539.84959505,0.00011001,2]
[323338903,1713906437218,-28586.13908642,0.00011001,2]
[323338904,1713906438259,154.84515485,0.00011,2]
[323338905,1713906439116,154.84515485,0.00011,2]
[323338906,1713906442823,329.62886819,0.00011,2]
[323338907,1713906443959,2623.97456043,0.00011,2]
[323338908,1713906445616,193.60170872,0.00011,2]
[323338909,1713906446840,199.80945329,0.00011,2]
[323338910,1713906450344,179.79525862,0.00011,2]
[323338911,1713906452782,1620.29564358,0.00011,2]
[323338912,1713906454334,186.86217194,0.00011,2]
[323338913,1713906454824,539.84959505,0.00011,2]
[323338914,1713906454891,701.94771615,0.00011,2]
[323338915,1713906455929,235.59138741,0.00011,2]
[323338916,1713906455976,471.87732034,0.00011,2]
[323338917,1713906456649,459.70738052,0.00011,2]
[323338918,1713906456760,1578.09578874,0.00011,2]
[323338919,1713906457624,442.97514304,0.00011,2]
[323338920,1713906457721,1678.29832492,0.00011,2]
[323338921,1713906458266,154.84515485,0.00011,2]
[323338922,1713906458820,408.14538356,0.00011,2]
[323338923,1713906459394,362.01061268,0.00011,2]
[323338924,1713906459527,173.22582113,0.00011,2]
[323338925,1713906460558,977.80653021,0.00011,2]
[323338926,1713906461080,154.84515485,0.00011,2]
[323338927,1713906461488,883.78313678,0.00011,2]
[323338928,1713906461607,193.60170872,0.00011,2]
[323338929,1713906461640,808.46399951,0.00011,2]
[323338930,1713906462451,521.52942585,0.00011,2]
[323338931,1713906465374,154.84515485,0.00010999,2]
[323338932,1713906465414,154.84515485,0.00010999,2]
[323338933,1713906466886,701.94771615,0.00011,2]
[323338934,1713906469824,206.06744026,0.00011,2]
[323338935,1713906471862,457.95599812,0.00011,2]
[323338936,1713906471952,404.61123118,0.00011,2]
[323338937,1713906473224,154.84515485,0.00011,2]
[323338938,1713906473333,258.84882741,0.00011,2]
[323338939,1713906473432,173.22582113,0.00011,2]
[323338940,1713906473621,808.46399951,0.00011,2]
[323338941,1713906475696,1678.29832492,0.00011,2]
[323338942,1713906476033,474.79230604,0.00011,2]
[323338943,1713906476362,1578.09578874,0.00011,2]
[323338944,1713906476428,623.77275616,0.00011,2]
[323338945,1713906476672,207.89139513,0.00011,2]
[323338946,1713906476816,670.60028968,0.00011,2]
[323338947,1713906477081,176.58502936,0.00011,2]
[323338948,1713906477496,883.78313678,0.00011,2]
[323338949,1713906478271,210.91866431,0.00011,2]
[323338950,1713906478509,639.2071842,0.00011,2]
[323338951,1713906479144,519.95768087,0.00011,2]
[323338952,1713906479319,359.31109101,0.00011,2]
[323338953,1713906479410,212.20874507,0.00011,2]
[323338954,1713906480571,1115.24017505,0.00011,2]
[323338955,1713906480695,300.0,0.00011,2]
[323338956,1713906481080,59159.66057733,0.00011,2]
[323338957,1713906481619,193.52697819,0.00011,2]
[323338958,1713906481944,300.0,0.00011,2]
[323338959,1713906482313,1878.1368462,0.00011,2]
[323338960,1713906485840,206.06744026,0.00011,2]
[323338961,1713906488435,24900.0,0.00010798,2]
[323338962,1713906489378,154.84515485,0.00011,2]
[323338963,1713906490880,329.62886819,0.00011,2]
[323338964,1713906491149,519.95768087,0.00011,2]
[323338965,1713906492063,474.79230604,0.00011,2]
[323338966,1713906492647,20862.11247774,0.00010891,2]
[323338967,1713906492681,182.83290751,0.00011,2]
[323338968,1713906492863,212.06825711,0.00011,2]
[323338969,1713906493214,154.84515485,0.00011,2]
[323338970,1713906493853,471.87732034,0.00011,2]
[323338971,1713906494251,172.32483696,0.00011,2]
[323338972,1713906494424,283.38557575,0.00011,2]
[323338973,1713906495325,362.01061268,0.00011,2]
[323338974,1713906495508,883.78313678,0.00011,2]
[323338975,1713906495608,193.60170872,0.00011,2]
[323338976,1713906495859,526.34381075,0.00011,2]
[323338977,1713906496304,1878.1368462,0.00011,2]
[323338978,1713906496464,1490.32391025,0.00011,2]
[323338979,1713906496795,1620.29564358,0.00011,2]
[323338980,1713906497100,59159.66057733,0.00011,2]
[323338981,1713906497298,157.76351589,0.00011,2]
[323338982,1713906497618,732.64897758,0.00011,2]
[323338983,1713906497694,309.65937468,0.00011,2]
[323338984,1713906497726,1678.29832492,0.00011,2]
[323338985,1713906497865,1311.74164115,0.00011,2]
[323338986,1713906498362,1578.09578874,0.00011,2]
[323338987,1713906498572,977.80653021,0.00011,2]
[323338988,1713906499962,2587.76784421,0.00011,2]
[323338989,1713906500526,623.77275616,0.00011,2]
[323338990,1713906500779,203.84630574,0.00011,2]
[323338991,1713906500813,161.90603582,0.00011,2]
[323338992,1713906500896,408.87824963,0.00011,2]
[323338993,1713906501828,345.39864818,0.00011,2]
[323338994,1713906502324,194.13687731,0.00011,2]
[323338995,1713906502892,701.94771615,0.00011,2]
[323338996,1713906503637,2623.97456043,0.00011,2]
[323338997,1713906504201,4184.78327648,0.00011,2]
[323338998,1713906504466,521.52942585,0.00011,2]
[323338999,1713906504810,1394.46359454,0.00011,2]
[323339000,1713906504841,162.02240911,0.00011,2]
[323339001,1713906505668,204.57691625,0.00010902,2]
[323339002,1713906505960,459.70738052,0.00011,2]
[323339003,1713906506066,564.51895848,0.00011,2]
[323339004,1713906507337,242.4910051,0.00011,2]
[323339005,1713906509290,157.76351589,0.00011,2]
[323339006,1713906509859,525.93861077,0.00011,2]
[323339007,1713906509975,1202.20163216,0.00011,2]
[323339008,1713906510041,474.79230604,0.00011,2]
[323339009,1713906510426,282.92215931,0.00011,2]
[323339010,1713906510853,212.06825711,0.00011,2]
[323339011,1713906511171,207.89139513,0.00011,2]
[323339012,1713906511635,250.80293639,0.00011,2]
[323339013,1713906513180,519.95768087,0.00011,2]
[323339014,1713906514367,507.08557336,0.00011,2]
[323339015,1713906514546,1490.32391025,0.00011,2]
[323339016,1713906515856,239.21002891,0.00011,2]
[323339017,1713906515893,1678.29832492,0.00011,2]
[323339018,1713906516529,1878.1368462,0.00011,2]
[323339019,1713906516564,308.49906714,0.00011,2]
[323339020,1713906516759,203.84630574,0.00011,2]
[323339021,1713906516820,539.84959505,0.00011,2]
[323339022,1713906516853,977.80653021,0.00011,2]
[323339023,1713906517089,6780.89709032,0.00011,2]
[323339024,1713906517614,309.62844895,0.00011,2]
[323339025,1713906517860,1281.98087769,0.00011,2]
[323339026,1713906518503,549.53648482,0.00011,2]
[323339027,1713906518906,162.02240911,0.00011,2]
[323339028,1713906519956,2587.76784421,0.00011,2]
[323339029,1713906520170,172.3190033,0.00011,2]
[323339030,1713906520430,623.77275616,0.00011,2]
[323339031,1713906521123,410.30394386,0.00011,2]
[323339032,1713906521182,673.55445774,0.00011,2]
[323339033,1713906523015,626.79213198,0.00011,2]
[323339034,1713906523758,15029.53981042,0.00011,2]
[323339035,1713906524475,309.67484219,0.00011,2]
[323339036,1713906525567,768.00392315,0.0001,2]
[323339037,1713906525971,1202.20163216,0.00011,2]
[323339038,1713906526039,474.79230604,0.00011,2]
[323339039,1713906526360,200.0,0.00011,2]
[323339040,1713906526820,1327.18546518,0.00011,2]
[323339041,1713906527414,7616.20738606,0.00011,2]
[323339042,1713906528181,301.74187726,0.00011,2]
[323339043,1713906528381,202.14637118,0.00011,2]
[323339044,1713906529543,154.84515485,0.00011,2]
[323339045,1713906530082,479.22725919,0.00011,2]
[323339046,1713906530395,308.26329678,0.00011,2]
[323339047,1713906530600,154.84515485,0.00011,2]
[323339048,1713906531355,207.89139513,0.00011,2]
[323339049,1713906531560,7866.94121737,0.00011,2]
[323339050,1713906532299,1423.41299952,0.00011,2]
[323339051,1713906532484,549.53648482,0.00011,2]
[323339052,1713906534800,163.75223167,0.00011,2]
[323339053,1713906534845,162.02240911,0.00011,2]
[323339054,1713906535701,1676.83616858,0.00011,2]
[323339055,1713906536347,737.26907164,0.00011,2]
[323339056,1713906536583,979.31715741,0.00011,2]
[323339057,1713906537151,389.55880621,0.00011,2]
[323339058,1713906538433,325.144296,0.00011,2]
[323339059,1713906538915,408.87824963,0.00011,2]
[323339060,1713906540991,154.87609912,0.00011,2]
[323339061,1713906541088,673.55445774,0.00011,2]
[323339062,1713906541687,768.00392315,0.0001,2]
[323339063,1713906544062,434.52436703,0.00011,2]
[323339064,1713906546591,154.84515485,0.00011,2]
[323339065,1713906550216,187.2839657,0.00011,2]
[323339066,1713906557458,154.84515485,0.00011,2]
[323339067,1713906557900,2868.8655512,0.00010119,2]
[323339068,1713906559104,-1090.52068603,0.00011001,2]
[323339069,1713906559127,-156.3480469,0.00011001,2]
[323339070,1713906559148,-468.2653797,0.00011003,2]
[323339071,1713906559169,-158.1526915,0.00011003,2]
[323339072,1713906559190,-232.71054593,0.00011118,2]
[323339073,1713906559212,-308.49906714,0.00011118,2]
[323339074,1713906559235,-362.01061268,0.00011118,2]
[323339075,1713906559258,-197.607947,0.00011118,2]
[323339076,1713906559279,-206.06744026,0.00011118,2]
[323339077,1713906559300,-564.51895848,0.00011118,2]
[323339078,1713906559321,-1578.09578874,0.00011118,2]
[323339079,1713906559344,-207.89139513,0.00011118,2]
[323339080,1713906559365,-158.9698689,0.00011118,2]
[323339081,1713906559390,-960.6952245,0.00011118,2]
[323339082,1713906559409,-304.93752392,0.00011118,2]
[323339083,1713906559431,-1530.72169816,0.00011118,2]
[323339084,1713906559451,-431.8825854,0.00011118,2]
[323339085,1713906559471,-162.02240911,0.00011118,2]
[323339086,1713906559492,-519.95768087,0.00011118,2]
[323339087,1713906559512,-154.84515485,0.00011118,2]
[323339088,1713906559532,-154.95429644,0.00011118,2]
[323339089,1713906559555,-5801.77357762,0.00011118,2]
[323339090,1713906559576,-1490.32391025,0.00011118,2]
[323339091,1713906559596,-1201.0302174,0.00011118,2]
[323339092,1713906559616,-534.4815085,0.00011118,2]
[323339093,1713906559638,-300.0,0.00011119,2]
[323339094,1713906559658,-300.0,0.00011119,2]
[323339095,1713906559679,-53003.75313255,0.0001112,2]
[323339096,1713906559862,154.84515485,0.00011,2]
[323339097,1713906563711,774.19455501,0.00010006,2]
[323339098,1713906563886,692.70825887,0.00011,2]
[323339130,1713906632853,-275.16174657,0.00011112,2]
[323339163,1713906638593,-1878.1368462,0.00011111,2]
[323339164,1713906638603,-154.84515485,0.00011111,2]
[323339165,1713906638612,-199.63055947,0.00011112,2]
[323339166,1713906638622,-539.84959505,0.00011112,2]
[323339167,1713906638631,-157.76351589,0.00011113,2]
[323339168,1713906638641,-154.84515485,0.00011113,2]
[323339169,1713906638650,-1394.46359454,0.00011113,2]
[323339170,1713906638660,-187.2839657,0.00011113,2]
[323339171,1713906638673,-1057.03497015,0.00011113,2]
[323339172,1713906638682,-193.60170872,0.00011113,2]
[323339173,1713906638691,-154.84515485,0.00011113,2]
[323339174,1713906638700,-154.84515485,0.00011114,2]
[323339175,1713906638711,-154.84515485,0.00011114,2]
[323339177,1713906638720,-154.84515485,0.00011115,2]
[323339179,1713906638730,-1311.74164115,0.00011115,2]
[323339180,1713906638739,-72560.09039098,0.00011115,2]
[323339182,1713906638748,-154.84515485,0.00011116,2]
[323339184,1713906638757,-409984.92201702,0.00011116,2]
[323339186,1713906638767,-300.0,0.00011116,2]
[323339188,1713906638776,-300.0,0.00011116,2]